[Event "FIDE WYCC Open U14 2023"]
[Site "Montesilvano"]
[Date "2023.11.13"]
[Round "1.8"]
[White "Daakshin Arun"]
[Black "Guretchii, Kirill"]
[Result "1-0"]
[ECO "D35"]
[WhiteElo "2342"]
[BlackElo "1806"]
[Annotator "ChessBase"]
[PlyCount "125"]
[EventDate "2023.11.13"]
[EventType "swiss"]
[EventCountry "ITA"]
[SourceTitle "playchess.com"]
[Source "ChessBase"]
[SourceQuality "1"]
[TimeControl "40/5400+30:1800+30"]

1. d4 {[%emt 0:00:04]} Nf6 {[%emt 0:00:09]} 2. c4 {[%emt 0:00:08]} e6 {[%emt 0:00:09]} 3. Nc3 {[%emt 0:00:24]} d5 {[%emt 0:00:08]} 4. cxd5 {[%emt 0:00:05]} exd5 {[%emt 0:00:06]} 5. Bg5 {[%emt 0:00:06]} Nbd7 {[%emt 0:00:08]} 6. e3 {[%emt 0:01:10]} Be7 {[%emt 0:00:23]} 7. Bd3 {[%emt 0:02:10]} O-O {[%emt 0:00:09]} 8. Nge2 {[%emt 0:02:55]} Re8 {[%emt 0:01:51]} 9. O-O {[%emt 0:03:31]} Nf8 {[%emt 0:01:51]} 10. Qc2 {[%emt 0:01:15]} g6 {[%emt 0:03:35]} 11. f3 {[%emt 0:08:52]} Ne6 {[%emt 0:02:25]} 12. Bh4 {[%emt 0:00:28]} c6 {[%emt 0:00:45]} 13. Kh1 {[%emt 0:00:32]} Nh5 {[%emt 0:03:20]} 14. Bf2 {[%emt 0:03:49]} b5 {[%emt 0:01:22]} 15. Rae1 {[%emt 0:06:47]} a5 {[%emt 0:11:37]} 16. e4 {[%emt 0:05:58]} dxe4 {[%emt 0:06:28]} 17. Bxe4 {[%emt 0:07:34]} Ra6 {[%emt 0:06:52]} 18. d5 {[%emt 0:04:39]} cxd5 {[%emt 0:04:17]} 19. Rd1 {[%emt 0:02:16]} b4 {[%emt 0:14:57]} 20. Nxd5 {[%emt 0:03:01]} Rd6 {[%emt 0:04:55]} 21. Nxe7+ {[%emt 0:08:01]} Qxe7 {[%emt 0:00:56]} 22. Rxd6 {[%emt 0:03:02]} Qxd6 23. Rd1 {[%emt 0:03:32]} Qa6 {[%emt 0:01:55]} 24. Nd4 {[%emt 0:06:26]} Ng5 {[%emt 0:10:05]} 25. Qc6 {[%emt 0:05:49]} Rd8 {[%emt 0:03:54]} 26. Qxa6 {[%emt 0:03:45]} Bxa6 {[%emt 0:00:59]} 27. Bc2 {[%emt 0:00:15]} Bb7 {[%emt 0:04:57]} 28. h4 {[%emt 0:01:39]} Ne6 {[%emt 0:02:22]} 29. Nxe6 {[%emt 0:00:18]} Rxd1+ {[%emt 0:00:28]} 30. Bxd1 {[%emt 0:00:05]} fxe6 {[%emt 0:00:04]} 31. Bb6 {[%emt 0:00:42]} Bd5 {[%emt 0:00:33]} 32. Bxa5 {[%emt 0:00:41]} Bxa2 {[%emt 0:01:49]} 33. Bxb4 {[%emt 0:00:41]} Ng3+ {[%emt 0:00:20]} 34. Kg1 {[%emt 0:00:47]} Bc4 {[%emt 0:01:12]} 35. Kf2 {[%emt 0:01:37]} Nf5 {[%emt 0:00:18]} 36. g4 {[%emt 0:02:08]} Nxh4 {[%emt 0:02:28]} 37. Be7 {[%emt 0:00:11]} g5 {[%emt 0:00:01]} 38. Bxg5 {[%emt 0:00:15]} Ng6 {[%emt 0:00:02]} 39. b3 {[%emt 0:00:33]} Bd5 {[%emt 0:00:30]} 40. b4 {[%emt 0:00:00]} Kf7 {[%emt 0:00:00]} 41. Ke3 {[%emt 0:05:00]} e5 {[%emt 0:03:22]} 42. Bc2 {[%emt 0:00:28]} Ke6 {[%emt 0:00:59]} 43. Be4 {[%emt 0:03:38]} Bc4 {[%emt 0:02:01]} 44. Bh6 {[%emt 0:02:03]} Kf7 {[%emt 0:03:00]} 45. Bd3 {[%emt 0:01:56]} Bd5 {[%emt 0:05:10]} 46. b5 {[%emt 0:00:35]} Ke6 {[%emt 0:00:43]} 47. Be4 {[%emt 0:02:51]} Bxe4 {[%emt 0:02:06]} 48. Kxe4 {[%emt 0:00:40]} Ne7 {[%emt 0:00:32]} 49. Bf8 {[%emt 0:00:33]} Nd5 {[%emt 0:00:36]} 50. Kd3 {[%emt 0:00:48]} Nf4+ {[%emt 0:07:53]} 51. Kc4 {[%emt 0:00:14]} Ng6 {[%emt 0:00:38]} 52. Bc5 {[%emt 0:01:29]} e4 {[%emt 0:03:13]} 53. fxe4 {[%emt 0:02:06]} Ne5+ {[%emt 0:00:03]} 54. Kd4 {[%emt 0:00:30]} Nxg4 {[%emt 0:00:10]} 55. Bb4 {[%emt 0:09:49]} Ne5 {[%emt 0:02:11]} 56. Ba5 {[%emt 0:02:14]} h5 {[%emt 0:02:11]} 57. Bc7 {[%emt 0:01:51]} Ng4 {[%emt 0:09:38]} 58. Bg3 {[%emt 0:03:25]} Kd7 {[%emt 0:02:30]} 59. e5 {[%emt 0:01:26]} Nh6 {[%emt 0:03:09]} 60. Kd5 {[%emt 0:01:02]} Nf5 {[%emt 0:01:01]} 61. e6+ {[%emt 0:00:50]} Ke8 {[%emt 0:00:34]} 62. b6 {[%emt 0:00:38]} Ne7+ {[%emt 0:00:08]} 63. Ke4 1-0

[Event "FIDE WYCC Open U14 2023"]
[Site "Montesilvano"]
[Date "2023.11.13"]
[Round "1.9"]
[White "Artemov, Andriy"]
[Black "Besou, Hussain"]
[Result "1-0"]
[ECO "E06"]
[WhiteElo "1779"]
[BlackElo "2341"]
[Annotator "RC"]
[PlyCount "145"]
[EventDate "2023.11.13"]
[EventType "swiss"]
[EventCountry "ITA"]
[SourceTitle "playchess.com"]
[Source "ChessBase"]
[SourceQuality "1"]
[TimeControl "40/5400+30:1800+30"]

1. d4 {[%emt 0:00:14]} Nf6 {[%emt 0:00:08]} 2. c4 {[%emt 0:00:22]} e6 {[%emt 0:00:10]} 3. g3 {[%emt 0:00:26]} d5 {[%emt 0:00:39]} 4. Bg2 {[%emt 0:00:23]} Be7 {[%emt 0:00:40]} 5. Nf3 {[%emt 0:00:11]} O-O {[%emt 0:00:08]} 6. O-O {[%emt 0:01:07]} dxc4 {[%emt 0:00:30]} 7. Qc2 {[%emt 0:01:04]} a6 {[%emt 0:00:09]} 8. a4 {[%emt 0:00:23]} Bd7 {[%emt 0:00:08]} 9. Qxc4 {[%emt 0:00:45]} Bc6 {[%emt 0:00:07]} 10. Bf4 {[%emt 0:00:29]} Nbd7 {[%emt 0:02:46]} 11. Nc3 {[%emt 0:01:13]} a5 {[%emt 0:03:55]} 12. Rfd1 {[%emt 0:02:11]} Bb4 {[%emt 0:01:48]} 13. Ne5 {[%emt 0:15:29]} Bxg2 {[%emt 0:01:12]} 14. Kxg2 {[%emt 0:00:08]} c6 {[%emt 0:04:28]} 15. Rac1 {[%emt 0:07:32]} Nb6 {[%emt 0:20:53]} 16. Qb3 {[%emt 0:00:11]} Bxc3 {[%emt 0:02:12]} 17. Rxc3 {[%emt 0:08:54]} Nfd5 {[%emt 0:00:31]} 18. Rcc1 {[%emt 0:00:51]} Nxf4+ {[%emt 0:00:42]} 19. gxf4 {[%emt 0:00:01]} Qd5+ {[%emt 0:00:08]} 20. Qxd5 {[%emt 0:00:09]} exd5 {[%emt 0:01:46]} 21. b3 {[%emt 0:00:28]} Rfe8 {[%emt 0:01:48]} 22. e3 {[%emt 0:03:00]} Nc8 {[%emt 0:07:55]} 23. Rb1 {[%emt 0:04:50]} f6 {[%emt 0:02:50]} 24. Nd3 {[%emt 0:01:58]} Nd6 {[%emt 0:01:05]} 25. Rdc1 {[%emt 0:03:43]} Re7 {[%emt 0:12:14]} 26. Nc5 {[%emt 0:04:35]} Rc7 {[%emt 0:07:57]} 27. b4 {[%emt 0:03:57]} axb4 {[%emt 0:02:05]} 28. Rxb4 {[%emt 0:00:03]} b5 {[%emt 0:00:15]} 29. Ne6 {[%emt 0:12:29]} Re7 {[%emt 0:05:13]} 30. Nc5 {[%emt 0:07:50]} Kf7 {[%emt 0:09:34]} 31. axb5 {[%emt 0:05:16]} cxb5 {[%emt 0:00:09]} 32. Rc2 {[%emt 0:00:32]} Rc7 {[%emt 0:01:19]} 33. Kf3 {[%emt 0:04:02]} Ke7 {[%emt 0:01:58]} 34. Ke2 {[%emt 0:02:42]} Ra1 {[%emt 0:00:36]} 35. Kd3 {[%emt 0:02:15]} Rh1 {[%emt 0:02:40]} 36. f3 {[%emt 0:00:15]} Nc4 {[%emt 0:01:48]} 37. Nb3 {[%emt 0:02:28]} Ra7 {[%emt 0:01:07]} 38. Re2 {[%emt 0:01:15]} Rd1+ {[%emt 0:00:58]} 39. Kc3 {[%emt 0:00:30]} Rf1 {[%emt 0:02:28]} 40. Rxb5 {[%emt 0:00:00]} Rxf3 {[%emt 0:00:00]} 41. Rxd5 {[%emt 0:05:55]} Rxe3+ {[%emt 0:00:31]} 42. Rxe3+ {[%emt 0:00:05]} Nxe3 {[%emt 0:00:05]} 43. Rb5 {[%emt 0:02:12]} Ng2 {[%emt 0:00:59]} 44. f5 {[%emt 0:02:01]} Kd6 {[%emt 0:09:37]} 45. Na5 {[%emt 0:03:17]} Rc7+ {[%emt 0:02:25]} 46. Nc4+ {[%emt 0:02:01]} Kd7 {[%emt 0:00:09]} 47. Rd5+ {[%emt 0:00:50]} Ke7 {[%emt 0:09:33]} 48. Rc5 {[%emt 0:00:07]} Rb7 {[%emt 0:00:56]} 49. d5 {[%emt 0:04:29]} Nf4 {[%emt 0:01:30]} 50. Kd4 {[%emt 0:02:08]} g6 {[%emt 0:05:15]} 51. Rc6 {[%emt 0:04:12]} gxf5 {[%emt 0:05:19]} 52. Nb6 {[%emt 0:00:27]} Kf7 {[%emt 0:01:09]} 53. Kc4 {[%emt 0:02:03]} Ng6 {[%emt 0:00:33]} 54. Kb5 {[%emt 0:08:55]} Ne5 {[%emt 0:01:11]} 55. Rc2 {[%emt 0:01:29]} Nd7 {[%emt 0:00:45]} 56. Kc6 {[%emt 0:00:14]} Rxb6+ {[%emt 0:00:04]} 57. Kxd7 {[%emt 0:00:05]} Ra6 {[%emt 0:00:50]} 58. d6 {[%emt 0:01:10]} f4 {[%emt 0:00:36]} 59. Kc7 {[%emt 0:00:30]} Ra7+ {[%emt 0:00:13]} 60. Kb6 {[%emt 0:00:25]} Ra8 {[%emt 0:00:13]} 61. Kb7 {[%emt 0:00:25]} Rf8 {[%emt 0:01:18]} 62. Kc7 {[%emt 0:01:00]} f3 {[%emt 0:00:32]} 63. Rf2 {[%emt 0:01:31]} Ra8 {[%emt 0:00:08]} 64. Rxf3 {[%emt 0:01:23]} Ra7+ {[%emt 0:00:45]} 65. Kb6 {[%emt 0:00:58]} Ra1 {[%emt 0:00:15]} 66. Re3 {[%emt 0:00:32]} Rd1 {[%emt 0:01:06]} 67. Kc7 {[%emt 0:00:15]} Rc1+ {[%emt 0:00:05]} 68. Kd8 {[%emt 0:00:04]} f5 {[%emt 0:00:09]} 69. Rd3 {[%emt 0:00:45]} h6 {[%emt 0:00:23]} 70. d7 {[%emt 0:00:07]} Rc5 {[%emt 0:00:19]} 71. Rd6 {[%emt 0:01:02]} h5 {[%emt 0:00:20]} 72. h4 {[%emt 0:00:29]} Rc4 {[%emt 0:00:58]} 73. Rd5 {[%emt 0:00:32]} 1-0

[Event "FIDE WYCC Open U14 2023"]
[Site "Montesilvano"]
[Date "2023.11.13"]
[Round "1.10"]
[White "Dotzer, Lukas"]
[Black "Nieto Foresti, Julian"]
[Result "1-0"]
[ECO "B43"]
[WhiteElo "2339"]
[BlackElo "1769"]
[Annotator "ChessBase"]
[PlyCount "71"]
[EventDate "2023.11.13"]
[EventType "swiss"]
[EventCountry "ITA"]
[SourceTitle "playchess.com"]
[Source "ChessBase"]
[SourceQuality "1"]
[TimeControl "40/5400+30:1800+30"]

1. e4 {[%emt 0:00:03]} c5 {[%emt 0:00:12]} 2. Nf3 {[%emt 0:00:05]} e6 {[%emt 0:00:07]} 3. d4 {[%emt 0:00:07]} cxd4 {[%emt 0:00:07]} 4. Nxd4 {[%emt 0:00:05]} a6 {[%emt 0:00:07]} 5. Nc3 {[%emt 0:00:07]} Qc7 {[%emt 0:00:13]} 6. Bd3 {[%emt 0:00:07]} Nf6 {[%emt 0:00:13]} 7. Qe2 {[%emt 0:00:09]} d6 {[%emt 0:00:17]} 8. f4 {[%emt 0:00:25]} Nbd7 {[%emt 0:00:47]} 9. g4 {[%emt 0:00:13]} Nc5 {[%emt 0:01:52]} 10. g5 {[%emt 0:03:58]} Nxd3+ {[%emt 0:03:03]} 11. cxd3 {[%emt 0:03:37]} Nd7 {[%emt 0:00:22]} 12. Be3 {[%emt 0:05:01]} Be7 {[%emt 0:03:42]} 13. Rc1 {[%emt 0:05:45]} Qb8 {[%emt 0:04:24]} 14. h4 {[%emt 0:08:41]} b5 {[%emt 0:08:36]} 15. Nc6 {[%emt 0:13:40]} Qb7 {[%emt 0:00:03]} 16. Na5 {[%emt 0:05:07]} Qb8 {[%emt 0:01:43]} 17. Bd4 {[%emt 0:03:23]} e5 {[%emt 0:05:52]} 18. Nc6 {[%emt 0:05:30]} Qb7 {[%emt 0:03:22]} 19. Nd5 {[%emt 0:03:48]} Bd8 {[%emt 0:06:48]} 20. Nxd8 {[%emt 0:05:32]} Kxd8 {[%emt 0:00:10]} 21. Rc7 {[%emt 0:01:34]} exd4 {[%emt 0:03:04]} 22. Rxb7 Bxb7 {[%emt 0:00:02]} 23. Qf2 {[%emt 0:02:18]} Bxd5 {[%emt 0:01:14]} 24. exd5 {[%emt 0:00:12]} Re8+ {[%emt 0:02:47]} 25. Kd2 {[%emt 0:00:36]} Re3 {[%emt 0:01:06]} 26. Re1 {[%emt 0:01:05]} Nb6 {[%emt 0:00:20]} 27. Rxe3 {[%emt 0:00:17]} dxe3+ {[%emt 0:00:20]} 28. Qxe3 {[%emt 0:00:08]} Kc7 {[%emt 0:01:31]} 29. Qe7+ {[%emt 0:00:36]} Nd7 {[%emt 0:01:06]} 30. Qxf7 {[%emt 0:00:13]} Rf8 {[%emt 0:00:11]} 31. Qxg7 {[%emt 0:00:06]} Rxf4 {[%emt 0:00:17]} 32. Qxh7 {[%emt 0:00:28]} Rf2+ {[%emt 0:00:50]} 33. Ke3 {[%emt 0:00:18]} Rxb2 {[%emt 0:00:46]} 34. g6 {[%emt 0:00:06]} Rxa2 {[%emt 0:01:45]} 35. g7 {[%emt 0:00:19]} Nf6 {[%emt 0:00:06]} 36. Qf5 {[%emt 0:00:28]} 1-0

[Event "FIDE WYCC Open U14 2023"]
[Site "Montesilvano"]
[Date "2023.11.13"]
[Round "1.11"]
[White "Heidarsson, Mikael Bjarki"]
[Black "Goh, Zi Han"]
[Result "0-1"]
[ECO "D35"]
[WhiteElo "1767"]
[BlackElo "2333"]
[Annotator "ChessBase"]
[PlyCount "122"]
[EventDate "2023.11.13"]
[EventType "swiss"]
[EventCountry "ITA"]
[SourceTitle "playchess.com"]
[Source "ChessBase"]
[SourceQuality "1"]
[TimeControl "40/5400+30:1800+30"]

1. d4 {[%emt 0:00:04]} d5 {[%emt 0:01:03]} 2. c4 {[%emt 0:00:28]} e6 {[%emt 0:00:18]} 3. Nc3 {[%emt 0:00:14]} Nf6 {[%emt 0:00:19]} 4. cxd5 {[%emt 0:00:08]} exd5 {[%emt 0:00:07]} 5. Bg5 {[%emt 0:00:08]} c6 {[%emt 0:00:40]} 6. e3 {[%emt 0:00:38]} Be7 {[%emt 0:00:12]} 7. Bd3 {[%emt 0:00:09]} Nbd7 {[%emt 0:00:12]} 8. Nge2 {[%emt 0:00:16]} Nh5 {[%emt 0:01:13]} 9. Bxe7 {[%emt 0:00:12]} Qxe7 {[%emt 0:00:06]} 10. Ng3 {[%emt 0:04:30]} Nf4 {[%emt 0:04:59]} 11. O-O {[%emt 0:01:45]} Nxd3 {[%emt 0:00:17]} 12. Qxd3 {[%emt 0:00:11]} O-O {[%emt 0:00:57]} 13. f3 {[%emt 0:02:01]} Nb6 {[%emt 0:05:17]} 14. e4 {[%emt 0:07:43]} Qb4 {[%emt 0:09:41]} 15. exd5 {[%emt 0:04:20]} cxd5 {[%emt 0:01:22]} 16. Rf2 {[%emt 0:00:35]} Bd7 {[%emt 0:01:37]} 17. Re1 {[%emt 0:06:07]} Rfe8 {[%emt 0:04:20]} 18. Rfe2 {[%emt 0:02:33]} Rxe2 {[%emt 0:02:33]} 19. Rxe2 {[%emt 0:00:05]} Be6 {[%emt 0:11:46]} 20. a3 {[%emt 0:15:42]} Qd6 {[%emt 0:06:21]} 21. Nb5 {[%emt 0:04:43]} Qd7 {[%emt 0:04:19]} 22. b3 {[%emt 0:02:13]} a6 {[%emt 0:03:28]} 23. Nc3 {[%emt 0:02:19]} Qd6 {[%emt 0:00:35]} 24. Nb1 {[%emt 0:02:50]} a5 {[%emt 0:06:05]} 25. a4 {[%emt 0:03:02]} Qb4 {[%emt 0:06:41]} 26. Qc3 {[%emt 0:01:48]} Rc8 {[%emt 0:02:32]} 27. Qxb4 {[%emt 0:00:16]} axb4 {[%emt 0:00:03]} 28. Kf2 {[%emt 0:01:20]} Nd7 {[%emt 0:01:23]} 29. Nd2 {[%emt 0:02:22]} Nb8 {[%emt 0:01:06]} 30. Ndf1 {[%emt 0:01:49]} Nc6 {[%emt 0:02:40]} 31. Rd2 {[%emt 0:06:08]} Na5 {[%emt 0:00:42]} 32. Rd3 {[%emt 0:00:08]} Rc2+ {[%emt 0:06:07]} 33. Nd2 {[%emt 0:01:27]} Bd7 {[%emt 0:01:56]} 34. Ke2 {[%emt 0:02:16]} b5 {[%emt 0:01:41]} 35. Kd1 {[%emt 0:00:26]} Rc3 {[%emt 0:02:27]} 36. Rxc3 {[%emt 0:00:52]} bxc3 {[%emt 0:00:03]} 37. b4 {[%emt 0:01:43]} Nc6 {[%emt 0:02:33]} 38. Nb1 {[%emt 0:01:44]} Nxb4 {[%emt 0:00:33]} 39. Nxc3 {[%emt 0:00:12]} bxa4 {[%emt 0:00:04]} 40. Kc1 {[%emt 0:00:00]} Nd3+ {[%emt 0:00:00]} 41. Kb1 {[%emt 0:04:01]} Nf4 {[%emt 0:10:45]} 42. Nge2 {[%emt 0:00:53]} Nxg2 {[%emt 0:02:24]} 43. Nxd5 {[%emt 0:00:05]} Nh4 {[%emt 0:05:05]} 44. f4 {[%emt 0:03:20]} Nf3 {[%emt 0:00:14]} 45. Nb6 {[%emt 0:00:43]} Bb5 {[%emt 0:05:40]} 46. Nc3 {[%emt 0:01:50]} Bd3+ {[%emt 0:00:25]} 47. Kb2 {[%emt 0:02:28]} Nxd4 {[%emt 0:00:18]} 48. Ncxa4 {[%emt 0:00:38]} Nf3 {[%emt 0:00:30]} 49. Kc3 {[%emt 0:00:08]} Bf5 {[%emt 0:02:21]} 50. Nd5 {[%emt 0:01:24]} Be4 {[%emt 0:00:49]} 51. Ne3 {[%emt 0:00:35]} Nxh2 {[%emt 0:00:06]} 52. Nc5 {[%emt 0:00:44]} Bc6 {[%emt 0:00:52]} 53. Kd2 {[%emt 0:00:29]} Nf3+ {[%emt 0:00:25]} 54. Ke2 {[%emt 0:00:06]} Kf8 {[%emt 0:02:17]} 55. Nf5 {[%emt 0:01:05]} g6 {[%emt 0:00:34]} 56. Nh6 {[%emt 0:03:03]} f5 {[%emt 0:03:38]} 57. Ne6+ {[%emt 0:04:14]} Ke7 {[%emt 0:00:42]} 58. Ng5 {[%emt 0:00:38]} Nxg5 {[%emt 0:00:37]} 59. fxg5 {[%emt 0:00:01]} Bd5 {[%emt 0:00:11]} 60. Ke3 {[%emt 0:00:24]} Kd6 {[%emt 0:00:08]} 61. Kf4 {[%emt 0:00:16]} Be6 {[%emt 0:00:14]} 0-1

[Event "FIDE WYCC Open U14 2023"]
[Site "Montesilvano"]
[Date "2023.11.13"]
[Round "1.12"]
[White "Perossa, Nicolas"]
[Black "Lam, Chun Yung Samuel"]
[Result "1-0"]
[ECO "B43"]
[WhiteElo "2330"]
[BlackElo "1750"]
[Annotator "ChessBase"]
[PlyCount "49"]
[EventDate "2023.11.13"]
[EventType "swiss"]
[EventCountry "ITA"]
[SourceTitle "playchess.com"]
[Source "ChessBase"]
[SourceQuality "1"]
[TimeControl "40/5400+30:1800+30"]

1. e4 {[%emt 0:00:01]} c5 {[%emt 0:00:08]} 2. Nf3 {[%emt 0:00:28]} e6 {[%emt 0:00:06]} 3. d4 {[%emt 0:01:44]} cxd4 {[%emt 0:00:06]} 4. Nxd4 {[%emt 0:00:08]} a6 {[%emt 0:00:05]} 5. Nc3 {[%emt 0:00:15]} Qc7 {[%emt 0:00:06]} 6. g4 {[%emt 0:01:33]} b5 {[%emt 0:00:53]} 7. a3 {[%emt 0:18:42]} Bb7 {[%emt 0:01:15]} 8. Bg2 {[%emt 0:10:20]} b4 {[%emt 0:04:02]} 9. axb4 {[%emt 0:00:06]} Bxb4 {[%emt 0:00:06]} 10. O-O {[%emt 0:06:25]} Bxc3 {[%emt 0:14:07]} 11. bxc3 {[%emt 0:00:02]} Nf6 {[%emt 0:00:09]} 12. Re1 {[%emt 0:08:27]} h5 {[%emt 0:02:18]} 13. g5 {[%emt 0:01:59]} Ng4 {[%emt 0:00:16]} 14. h3 {[%emt 0:09:00]} Ne5 {[%emt 0:14:24]} 15. Ba3 {[%emt 0:07:19]} Nc4 {[%emt 0:04:04]} 16. Bb4 {[%emt 0:09:05]} a5 {[%emt 0:07:00]} 17. Nb5 {[%emt 0:01:32]} Qe5 {[%emt 0:00:22]} 18. Nd6+ {[%emt 0:00:24]} Nxd6 {[%emt 0:00:40]} 19. Bxd6 {[%emt 0:01:48]} Qxc3 {[%emt 0:04:37]} 20. Rb1 {[%emt 0:00:24]} Qc6 {[%emt 0:00:16]} 21. Qd4 {[%emt 0:01:03]} Rg8 {[%emt 0:03:07]} 22. Rb6 {[%emt 0:00:15]} Qc8 {[%emt 0:00:26]} 23. Qb2 {[%emt 0:00:40]} Nc6 {[%emt 0:03:12]} 24. Rxb7 {[%emt 0:00:16]} Nb4 {[%emt 0:00:21]} 25. e5 {[%emt 0:00:39]} 1-0

[Event "FIDE WYCC Open U14 2023"]
[Site "Montesilvano"]
[Date "2023.11.13"]
[Round "1.13"]
[White "Merida Ceballos, Sebastian"]
[Black "George Micheal, Kevin"]
[Result "1/2-1/2"]
[ECO "B90"]
[WhiteElo "1727"]
[BlackElo "2317"]
[Annotator "ChessBase"]
[PlyCount "124"]
[EventDate "2023.11.13"]
[EventType "swiss"]
[EventCountry "ITA"]
[SourceTitle "playchess.com"]
[Source "ChessBase"]
[SourceQuality "1"]
[TimeControl "40/5400+30:1800+30"]

1. e4 {[%emt 0:00:16]} c5 {[%emt 0:00:48]} 2. Nf3 {[%emt 0:00:12]} d6 {[%emt 0:00:05]} 3. d4 {[%emt 0:00:07]} cxd4 {[%emt 0:00:04]} 4. Nxd4 {[%emt 0:00:06]} Nf6 {[%emt 0:00:04]} 5. Nc3 {[%emt 0:00:10]} a6 {[%emt 0:00:03]} 6. f3 {[%emt 0:00:24]} e5 {[%emt 0:00:18]} 7. Nb3 {[%emt 0:00:03]} Be7 {[%emt 0:00:16]} 8. Be3 {[%emt 0:00:08]} Be6 {[%emt 0:00:16]} 9. Qd2 {[%emt 0:00:09]} h5 {[%emt 0:01:21]} 10. Be2 {[%emt 0:03:48]} Nbd7 {[%emt 0:01:20]} 11. O-O {[%emt 0:01:27]} O-O {[%emt 0:02:44]} 12. Nd5 {[%emt 0:10:46]} Bxd5 {[%emt 0:08:54]} 13. exd5 {[%emt 0:00:02]} h4 {[%emt 0:01:37]} 14. c4 {[%emt 0:06:03]} a5 {[%emt 0:09:03]} 15. a4 {[%emt 0:06:17]} Nh7 {[%emt 0:09:39]} 16. Bd3 {[%emt 0:04:53]} g6 {[%emt 0:04:49]} 17. Kh1 {[%emt 0:19:24]} Bg5 {[%emt 0:26:53]} 18. Bxg5 {[%emt 0:13:24]} Qxg5 {[%emt 0:02:08]} 19. Qxg5 {[%emt 0:10:44]} Nxg5 {[%emt 0:00:04]} 20. Rae1 b6 {[%emt 0:13:09]} 21. Nd2 {[%emt 0:05:39]} f5 {[%emt 0:02:23]} 22. f4 {[%emt 0:01:04]} Nf7 {[%emt 0:01:07]} 23. g3 {[%emt 0:01:26]} e4 {[%emt 0:01:17]} 24. Bc2 {[%emt 0:02:08]} Nc5 {[%emt 0:01:45]} 25. g4 {[%emt 0:03:11]} Nh6 {[%emt 0:02:10]} 26. g5 {[%emt 0:01:20]} Nf7 {[%emt 0:00:58]} 27. Re3 {[%emt 0:00:55]} Nd8 {[%emt 0:01:45]} 28. h3 {[%emt 0:04:50]} Ndb7 {[%emt 0:00:33]} 29. b3 {[%emt 0:00:09]} Na6 {[%emt 0:00:58]} 30. Nb1 {[%emt 0:01:03]} Nb4 {[%emt 0:01:42]} 31. Bd1 Na2 {[%emt 0:02:53]} 32. Na3 {[%emt 0:00:52]} Nb4 {[%emt 0:02:43]} 33. Nb5 {[%emt 0:00:17]} Kf7 {[%emt 0:00:11]} 34. Kh2 {[%emt 0:01:17]} Ke7 {[%emt 0:00:17]} 35. Kg2 {[%emt 0:00:39]} Kd7 {[%emt 0:01:08]} 36. Kh2 {[%emt 0:01:43]} Nd3 {[%emt 0:00:36]} 37. Bc2 {[%emt 0:00:43]} Nb4 {[%emt 0:01:03]} 38. Bd1 {[%emt 0:00:35]} Rfc8 {[%emt 0:00:05]} 39. Nc3 {[%emt 0:00:50]} Nc5 {[%emt 0:01:11]} 40. Kg2 {[%emt 0:00:00]} Ncd3 {[%emt 0:00:00]} 41. Kh2 {[%emt 0:01:14]} Nb2 {[%emt 0:05:57]} 42. Nb5 {[%emt 0:03:01]} Rc5 {[%emt 0:05:07]} 43. Re2 {[%emt 0:01:31]} Nxd1 {[%emt 0:09:32]} 44. Rxd1 {[%emt 0:00:07]} Rxb5 {[%emt 0:00:13]} 45. axb5 {[%emt 0:01:17]} Nd3 {[%emt 0:00:10]} 46. Rf1 {[%emt 0:05:51]} a4 {[%emt 0:05:22]} 47. Ra2 {[%emt 0:15:45]} a3 {[%emt 0:01:34]} 48. Kg2 {[%emt 0:03:44]} Nb4 {[%emt 0:02:16]} 49. Rd2 {[%emt 0:00:19]} Kc7 {[%emt 0:04:00]} 50. Kf2 {[%emt 0:01:16]} a2 {[%emt 0:00:16]} 51. Ra1 {[%emt 0:00:16]} Ra3 {[%emt 0:00:08]} 52. Kg2 {[%emt 0:00:57]} Kb7 {[%emt 0:00:59]} 53. Rb2 {[%emt 0:00:40]} Nd3 {[%emt 0:02:09]} 54. Rbxa2 {[%emt 0:00:09]} Nxf4+ {[%emt 0:00:08]} 55. Kf1 {[%emt 0:00:39]} Rxa2 {[%emt 0:00:26]} 56. Rxa2 {[%emt 0:00:01]} Nxh3 {[%emt 0:00:22]} 57. Rh2 {[%emt 0:00:14]} Nxg5 {[%emt 0:00:02]} 58. Rxh4 {[%emt 0:00:24]} Nf3 {[%emt 0:00:06]} 59. Rh7+ {[%emt 0:02:46]} Kc8 {[%emt 0:00:14]} 60. Rf7 {[%emt 0:00:34]} Nd2+ {[%emt 0:01:59]} 61. Ke1 {[%emt 0:01:05]} Nxb3 {[%emt 0:00:46]} 62. Rf6 {[%emt 0:00:07]} Kc7 {[%emt 0:00:50]} 1/2-1/2

[Event "FIDE WYCC Open U14 2023"]
[Site "Montesilvano"]
[Date "2023.11.13"]
[Round "1.14"]
[White "Lissillour, Baptiste"]
[Black "Skytte, Robert"]
[Result "1-0"]
[ECO "B10"]
[WhiteElo "2298"]
[BlackElo "1725"]
[Annotator "RC"]
[PlyCount "45"]
[EventDate "2023.11.13"]
[EventType "swiss"]
[EventCountry "ITA"]
[SourceTitle "playchess.com"]
[Source "ChessBase"]
[SourceQuality "1"]
[TimeControl "40/5400+30:1800+30"]

1. e4 {[%emt 0:00:03]} c6 {[%emt 0:00:11]} 2. Nf3 {[%emt 0:00:05]} d5 {[%emt 0:00:07]} 3. Nc3 {[%emt 0:00:04]} dxe4 {[%emt 0:00:04]} 4. Nxe4 {[%emt 0:00:04]} Nf6 {[%emt 0:00:10]} 5. Qe2 {[%emt 0:00:06]} Nxe4 {[%emt 0:00:04]} 6. Qxe4 {[%emt 0:00:05]} Nd7 {[%emt 0:00:06]} 7. d4 {[%emt 0:00:04]} Nf6 {[%emt 0:00:05]} 8. Qf4 {[%emt 0:00:04]} e6 {[%emt 0:00:25]} 9. Bd3 {[%emt 0:04:31]} Be7 {[%emt 0:02:30]} 10. Qg3 {[%emt 0:07:50]} h5 {[%emt 0:03:09]} 11. O-O {[%emt 0:13:19]} Bd6 {[%emt 0:23:25]} 12. Qxg7 {[%emt 0:02:52]} Rg8 {[%emt 0:00:19]} 13. Qh6 {[%emt 0:00:02]} Ng4 {[%emt 0:00:32]} 14. Qxh5 {[%emt 0:03:56]} Nf6 {[%emt 0:01:06]} 15. Qh4 {[%emt 0:01:22]} Rg4 {[%emt 0:00:12]} 16. Qh6 {[%emt 0:01:32]} Bf8 {[%emt 0:01:37]} 17. Qd2 {[%emt 0:01:23]} Qd5 {[%emt 0:07:15]} 18. Qe2 {[%emt 0:00:22]} Bd6 {[%emt 0:00:29]} 19. h3 {[%emt 0:00:47]} Rg8 {[%emt 0:01:50]} 20. c4 {[%emt 0:08:20]} Qh5 {[%emt 0:00:21]} 21. Kh1 {[%emt 0:00:18]} Rxg2 {[%emt 0:03:13]} 22. Kxg2 {[%emt 0:03:17]} e5 {[%emt 0:00:53]} 23. Ng5 {[%emt 0:00:46]} 1-0